[Event "Masters Tournament (MTO)"]
[Site "Biel, Switzerland"]
[Date "2026.07.22"]
[Round "9.1"]
[White "Gloeckler, Christian"]
[Black "Alexakis, Dimitris"]
[Result "1-0"]
[TimeControl "100+30+30sec/move"]
[WhiteTitle "-"]
[BlackTitle "-"]
[WhiteFideId "34608966"]
[BlackFideId "4277023"]
[WhiteElo "2506"]
[BlackElo "2525"]

1. e4 {[%clk 01:40:58]} {[%emt 00:00:02]} c5 {[%clk 01:40:52]} {[%emt
00:00:08]} 2. Nf3 {[%clk 01:41:19]} {[%emt 00:00:09]} Nc6 {[%clk 01:41:13]}
{[%emt 00:00:10]} 3. Nc3 {[%clk 01:41:43]} {[%emt 00:00:05]} g6 {[%clk
01:38:39]} {[%emt 00:03:04]} 4. d4 {[%clk 01:42:04]} {[%emt 00:00:08]} cxd4
{[%clk 01:39:00]} {[%emt 00:00:09]} 5. Nxd4 {[%clk 01:42:29]} {[%emt 00:00:05]}
Bg7 {[%clk 01:39:16]} {[%emt 00:00:14]} 6. Be3 {[%clk 01:42:51]} {[%emt
00:00:08]} Nf6 {[%clk 01:39:13]} {[%emt 00:00:33]} 7. Nxc6 {[%clk 01:43:13]}
{[%emt 00:00:08]} bxc6 {[%clk 01:39:26]} {[%emt 00:00:17]} 8. e5 {[%clk
01:43:36]} {[%emt 00:00:07]} Ng8 {[%clk 01:38:51]} {[%emt 00:01:05]} 9. Bd4
{[%clk 01:43:57]} {[%emt 00:00:08]} Qa5 {[%clk 01:38:26]} {[%emt 00:00:56]} 10.
f4 {[%clk 01:43:53]} {[%emt 00:00:35]} f6 {[%clk 01:37:44]} {[%emt 00:01:12]}
11. Qd2 {[%clk 01:41:57]} {[%emt 00:02:25]} fxe5 {[%clk 01:25:10]} {[%emt
00:13:05]} 12. fxe5 {[%clk 01:42:19]} {[%emt 00:00:07]} Bxe5 {[%clk 01:04:37]}
{[%emt 00:21:02]} 13. Qg5 {[%clk 01:42:42]} {[%emt 00:00:07]} d6 {[%clk
01:04:06]} {[%emt 00:01:02]} 14. Bxe5 {[%clk 01:43:02]} {[%emt 00:00:09]} Qxe5+
{[%clk 01:04:03]} {[%emt 00:00:33]} 15. Qxe5 {[%clk 01:43:25]} {[%emt
00:00:07]} dxe5 {[%clk 01:04:27]} {[%emt 00:00:06]} 16. O-O-O {[%clk 01:43:31]}
{[%emt 00:00:24]} Nf6 {[%clk 01:00:14]} {[%emt 00:04:44]} 17. Re1 {[%clk
01:39:55]} {[%emt 00:04:06]} Nd5 {[%clk 00:54:26]} {[%emt 00:06:19]} 18. Na4
{[%clk 01:15:09]} {[%emt 00:25:15]} Rf8 {[%clk 00:40:48]} {[%emt 00:14:08]} 19.
Rxe5 {[%clk 01:11:05]} {[%emt 00:04:34]} Rf2 {[%clk 00:29:59]} {[%emt
00:11:19]} 20. Nc5 {[%clk 01:00:15]} {[%emt 00:11:20]} Nb4 {[%clk 00:16:46]}
{[%emt 00:13:42]} 21. a3 {[%clk 00:57:37]} {[%emt 00:03:09]} Rxc2+ {[%clk
00:12:47]} {[%emt 00:04:29]} 22. Kb1 {[%clk 00:57:46]} {[%emt 00:00:21]} Bf5
{[%clk 00:12:49]} {[%emt 00:00:29]} 23. Rxf5 {[%clk 00:56:09]} {[%emt
00:02:07]} gxf5 {[%clk 00:12:51]} {[%emt 00:00:28]} 24. axb4 {[%clk 00:55:38]}
{[%emt 00:01:01]} Rd2 {[%clk 00:13:09]} {[%emt 00:00:11]} 25. Ba6 {[%clk
00:31:39]} {[%emt 00:24:29]} Rad8 {[%clk 00:12:19]} {[%emt 00:01:21]} 26. Bb7
{[%clk 00:31:10]} {[%emt 00:00:59]} R8d6 {[%clk 00:10:04]} {[%emt 00:02:45]} 27.
Rc1 {[%clk 00:26:52]} {[%emt 00:04:47]} Kf7 {[%clk 00:08:10]} {[%emt 00:02:24]}
28. Ka2 {[%clk 00:22:19]} {[%emt 00:05:03]} Rxg2 {[%clk 00:07:22]} {[%emt
00:01:19]} 29. b5 {[%clk 00:21:35]} {[%emt 00:01:15]} Rgg6 {[%clk 00:03:16]}
{[%emt 00:04:36]} 30. bxc6 {[%clk 00:21:32]} {[%emt 00:00:33]} Rxc6 {[%clk
00:03:40]} {[%emt 00:00:06]} 31. Bxc6 {[%clk 00:21:54]} {[%emt 00:00:08]} Rxc6
{[%clk 00:04:07]} {[%emt 00:00:03]} 32. Rc3 {[%clk 00:19:10]} {[%emt 00:03:13]}
e5 {[%clk 00:03:34]} {[%emt 00:01:04]} 33. b4 {[%clk 00:18:52]} {[%emt
00:00:48]} f4 {[%clk 00:01:55]} {[%emt 00:02:08]} 34. Ra3 {[%clk 00:18:21]}
{[%emt 00:01:01]} Kg6 {[%clk 00:01:29]} {[%emt 00:00:56]} 35. Rxa7 {[%clk
00:17:06]} {[%emt 00:01:45]} f3 {[%clk 00:01:14]} {[%emt 00:00:45]} 36. Kb3
{[%clk 00:17:31]} {[%emt 00:00:05]} Rf6 {[%clk 00:00:48]} {[%emt 00:00:56]} 37.
Ra1 {[%clk 00:17:39]} {[%emt 00:00:21]} Kf5 {[%clk 00:01:07]} {[%emt 00:00:11]}
38. Kc3 {[%clk 00:16:20]} {[%emt 00:01:49]} Rd6 {[%clk 00:00:46]} {[%emt
00:00:52]} 39. Ra8 {[%clk 00:14:50]} {[%emt 00:02:00]} Rf6 {[%clk 00:00:38]}
{[%emt 00:00:38]} 40. Kd2 {[%clk 00:14:49]} {[%emt 00:00:30]} Kf4 {[%clk
00:00:33]} {[%emt 00:00:36]} 41. Re8 {[%clk 00:12:22]} {[%emt 00:02:56]} Rh6
{[%clk 00:06:41]} {[%emt 00:24:23]} 42. Nd3+ {[%clk 00:41:59]} {[%emt
00:00:53]} Ke4 {[%clk 00:06:56]} {[%emt 00:00:16]} 43. Nf2+ {[%clk 00:42:24]}
{[%emt 00:00:05]} Kd4 {[%clk 00:07:06]} {[%emt 00:00:20]} 44. Rd8+ {[%clk
00:42:48]} {[%emt 00:00:05]} Kc4 {[%clk 00:07:27]} {[%emt 00:00:10]} 45. h3
{[%clk 00:43:14]} {[%emt 00:00:04]} Ra6 {[%clk 00:06:47]} {[%emt 00:01:10]} 46.
Ke3 {[%clk 00:43:30]} {[%emt 00:00:14]} 1-0

[Event "Masters Tournament (MTO)"]
[Site "Biel, Switzerland"]
[Date "2026.07.22"]
[Round "9.2"]
[White "Kozak, Adam"]
[Black "Acs, Peter"]
[Result "1/2-1/2"]
[TimeControl "100+30+30sec/move"]
[WhiteTitle "-"]
[BlackTitle "-"]
[WhiteFideId "753246"]
[BlackFideId "708020"]
[WhiteElo "2531"]
[BlackElo "2561"]

1. d4 {[%clk 01:39:55]} {[%emt 00:00:53]} d5 {[%clk 01:40:47]} {[%emt
00:00:24]} 2. c4 {[%clk 01:40:14]} {[%emt 00:00:12]} c6 {[%clk 01:40:55]}
{[%emt 00:00:21]} 3. cxd5 {[%clk 01:40:18]} {[%emt 00:00:27]} cxd5 {[%clk
01:41:14]} {[%emt 00:00:10]} 4. Nc3 {[%clk 01:40:41]} {[%emt 00:00:07]} Nf6
{[%clk 01:41:07]} {[%emt 00:00:36]} 5. Nf3 {[%clk 01:40:47]} {[%emt 00:00:24]}
a6 {[%clk 01:41:05]} {[%emt 00:00:33]} 6. Bf4 {[%clk 01:40:28]} {[%emt
00:00:49]} Nc6 {[%clk 01:40:52]} {[%emt 00:00:43]} 7. e3 {[%clk 01:40:22]}
{[%emt 00:00:36]} Bf5 {[%clk 01:40:36]} {[%emt 00:00:45]} 8. Bd3 {[%clk
01:40:31]} {[%emt 00:00:21]} Bxd3 {[%clk 01:40:39]} {[%emt 00:00:26]} 9. Qxd3
{[%clk 01:40:54]} {[%emt 00:00:07]} e6 {[%clk 01:40:59]} {[%emt 00:00:10]} 10.
O-O {[%clk 01:41:04]} {[%emt 00:00:21]} Bd6 {[%clk 01:40:50]} {[%emt 00:00:40]}
11. Bxd6 {[%clk 01:41:16]} {[%emt 00:00:18]} Qxd6 {[%clk 01:41:12]} {[%emt
00:00:07]} 12. h3 {[%clk 01:41:35]} {[%emt 00:00:12]} 1/2-1/2

[Event "Masters Tournament (MTO)"]
[Site "Biel, Switzerland"]
[Date "2026.07.22"]
[Round "9.3"]
[White "Gopal, G.N."]
[Black "Aronyak, Ghosh"]
[Result "1/2-1/2"]
[TimeControl "100+30+30sec/move"]
[WhiteTitle "-"]
[BlackTitle "-"]
[WhiteFideId "5015693"]
[BlackFideId "25072846"]
[WhiteElo "2529"]
[BlackElo "2549"]

1. e4 {[%clk 01:40:57]} c6 {[%clk 01:40:20]} {[%emt 00:00:41]} 2. d4 {[%clk
01:41:18]} {[%emt 00:00:09]} d5 {[%clk 01:40:45]} {[%emt 00:00:05]} 3. e5
{[%clk 01:41:44]} {[%emt 00:00:05]} Bf5 {[%clk 01:40:57]} {[%emt 00:00:18]} 4.
Nd2 {[%clk 01:42:02]} {[%emt 00:00:11]} e6 {[%clk 01:40:25]} {[%emt 00:01:02]}
5. Nb3 {[%clk 01:42:23]} {[%emt 00:00:09]} Nd7 {[%clk 01:40:47]} {[%emt
00:00:08]} 6. Nf3 {[%clk 01:41:50]} {[%emt 00:01:02]} c5 {[%clk 01:39:15]}
{[%emt 00:02:02]} 7. dxc5 {[%clk 01:34:12]} {[%emt 00:08:09]} a6 {[%clk
01:39:01]} {[%emt 00:00:44]} 8. Be3 {[%clk 01:29:46]} {[%emt 00:04:56]} Bg4
{[%clk 01:38:24]} {[%emt 00:01:06]} 9. Be2 {[%clk 01:27:59]} {[%emt 00:02:17]}
Bxf3 {[%clk 01:37:32]} {[%emt 00:01:22]} 10. Bxf3 {[%clk 01:28:26]} {[%emt
00:00:04]} Ne7 {[%clk 01:37:52]} {[%emt 00:00:11]} 11. O-O {[%clk 01:26:42]}
{[%emt 00:02:14]} Nxe5 {[%clk 01:38:07]} {[%emt 00:00:14]} 12. Re1 {[%clk
01:18:34]} {[%emt 00:08:38]} N7c6 {[%clk 01:37:35]} {[%emt 00:01:03]} 13. Be2
{[%clk 01:12:44]} {[%emt 00:06:20]} Be7 {[%clk 01:37:43]} {[%emt 00:00:22]} 14.
c3 {[%clk 01:03:28]} {[%emt 00:09:47]} Nd7 {[%clk 01:16:18]} {[%emt 00:21:54]}
15. c4 {[%clk 00:58:23]} {[%emt 00:05:35]} Nf6 {[%clk 01:16:12]} {[%emt
00:00:35]} 16. cxd5 {[%clk 00:56:26]} {[%emt 00:02:28]} Nxd5 {[%clk 01:15:49]}
{[%emt 00:00:52]} 17. Bf3 {[%clk 00:56:39]} {[%emt 00:00:17]} O-O {[%clk
01:04:21]} {[%emt 00:11:58]} 18. Bxd5 {[%clk 00:51:25]} {[%emt 00:05:45]} Qxd5
{[%clk 01:04:21]} {[%emt 00:00:29]} 19. Qxd5 {[%clk 00:51:51]} {[%emt
00:00:05]} exd5 {[%clk 01:04:48]} {[%emt 00:00:03]} 20. Rad1 {[%clk 00:47:53]}
{[%emt 00:04:27]} 1/2-1/2

[Event "Masters Tournament (MTO)"]
[Site "Biel, Switzerland"]
[Date "2026.07.22"]
[Round "9.4"]
[White "Ghosh, Diptayan"]
[Black "Liu, Bei"]
[Result "1-0"]
[TimeControl "100+30+30sec/move"]
[WhiteTitle "-"]
[BlackTitle "-"]
[WhiteFideId "5045207"]
[BlackFideId "8603596"]
[WhiteElo "2554"]
[BlackElo "2175"]

1. d4 {[%clk 01:39:26]} {[%emt 00:01:33]} d5 {[%clk 01:40:46]} {[%emt
00:00:14]} 2. c4 {[%clk 01:39:46]} {[%emt 00:00:09]} e6 {[%clk 01:41:02]}
{[%emt 00:00:14]} 3. Nc3 {[%clk 01:40:01]} {[%emt 00:00:16]} Nf6 {[%clk
01:41:26]} {[%emt 00:00:06]} 4. cxd5 {[%clk 01:40:19]} {[%emt 00:00:11]} exd5
{[%clk 01:41:51]} {[%emt 00:00:06]} 5. Bg5 {[%clk 01:40:39]} {[%emt 00:00:09]}
c6 {[%clk 01:41:53]} {[%emt 00:00:28]} 6. e3 {[%clk 01:38:37]} {[%emt
00:02:32]} h6 {[%clk 01:42:16]} {[%emt 00:00:07]} 7. Bh4 {[%clk 01:39:02]}
{[%emt 00:00:06]} Be7 {[%clk 01:42:40]} {[%emt 00:00:04]} 8. Bd3 {[%clk
01:39:08]} {[%emt 00:00:26]} O-O {[%clk 01:42:53]} {[%emt 00:00:16]} 9. Bg3
{[%clk 01:38:36]} {[%emt 00:01:02]} c5 {[%clk 01:36:15]} {[%emt 00:07:08]} 10.
dxc5 {[%clk 01:31:47]} {[%emt 00:07:20]} Bxc5 {[%clk 01:36:37]} {[%emt
00:00:08]} 11. Nge2 {[%clk 01:32:08]} {[%emt 00:00:08]} Nc6 {[%clk 01:36:21]}
{[%emt 00:00:47]} 12. O-O {[%clk 01:32:29]} {[%emt 00:00:09]} a6 {[%clk
01:32:28]} {[%emt 00:04:23]} 13. Rc1 {[%clk 01:30:20]} {[%emt 00:02:39]} Qe7
{[%clk 01:14:12]} {[%emt 00:18:46]} 14. Bb1 {[%clk 01:12:48]} {[%emt 00:18:02]}
Rd8 {[%clk 01:11:00]} {[%emt 00:03:42]} 15. Bh4 {[%clk 01:05:47]} {[%emt
00:07:31]} g5 {[%clk 00:59:13]} {[%emt 00:12:18]} 16. Bg3 {[%clk 01:06:03]}
{[%emt 00:00:14]} d4 {[%clk 00:59:12]} {[%emt 00:00:31]} 17. exd4 {[%clk
01:01:41]} {[%emt 00:04:52]} Nxd4 {[%clk 00:58:42]} {[%emt 00:01:00]} 18. Nxd4
{[%clk 00:57:18]} {[%emt 00:04:53]} Bxd4 {[%clk 00:58:58]} {[%emt 00:00:15]} 19.
Qc2 {[%clk 00:53:06]} {[%emt 00:04:42]} Be6 {[%clk 00:55:20]} {[%emt 00:04:07]}
20. Rfe1 {[%clk 00:50:54]} {[%emt 00:02:43]} Rac8 {[%clk 00:47:24]} {[%emt
00:08:27]} 21. Qe2 {[%clk 00:48:01]} {[%emt 00:03:23]} Qb4 {[%clk 00:34:16]}
{[%emt 00:13:37]} 22. h3 {[%clk 00:44:50]} {[%emt 00:03:41]} Kg7 {[%clk
00:28:05]} {[%emt 00:06:41]} 23. Rcd1 {[%clk 00:42:04]} {[%emt 00:03:16]} Kg8
{[%clk 00:25:15]} {[%emt 00:03:20]} 24. Rd2 {[%clk 00:38:11]} {[%emt 00:04:23]}
Ne8 {[%clk 00:21:02]} {[%emt 00:04:43]} 25. Qe4 {[%clk 00:26:17]} {[%emt
00:12:24]} Bxc3 {[%clk 00:18:46]} {[%emt 00:02:46]} 26. Qh7+ {[%clk 00:25:30]}
{[%emt 00:01:16]} Kf8 {[%clk 00:19:15]} {[%emt 00:00:01]} 27. Rxd8 {[%clk
00:20:13]} {[%emt 00:05:47]} Rxd8 {[%clk 00:19:29]} {[%emt 00:00:16]} 28. bxc3
{[%clk 00:20:39]} {[%emt 00:00:04]} Qxc3 {[%clk 00:19:35]} {[%emt 00:00:23]} 29.
Qxh6+ {[%clk 00:21:01]} {[%emt 00:00:09]} Qg7 {[%clk 00:17:59]} {[%emt
00:02:06]} 30. Qh5 {[%clk 00:20:02]} {[%emt 00:01:29]} Qc3 {[%clk 00:09:58]}
{[%emt 00:08:31]} 31. Rf1 {[%clk 00:14:16]} {[%emt 00:06:16]} Rd5 {[%clk
00:06:51]} {[%emt 00:03:37]} 32. Be4 {[%clk 00:12:42]} {[%emt 00:02:04]} Ra5
{[%clk 00:06:50]} {[%emt 00:00:31]} 33. Bxb7 {[%clk 00:11:39]} {[%emt
00:01:33]} g4 {[%clk 00:02:39]} {[%emt 00:04:41]} 34. Qh6+ {[%clk 00:11:05]}
{[%emt 00:01:04]} Qg7 {[%clk 00:03:05]} {[%emt 00:00:04]} 35. Qf4 {[%clk
00:10:59]} {[%emt 00:00:36]} Rxa2 {[%clk 00:02:11]} {[%emt 00:01:24]} 36. Bc6
{[%clk 00:07:40]} {[%emt 00:03:49]} Qc3 {[%clk 00:01:12]} {[%emt 00:01:29]} 37.
Bxe8 {[%clk 00:03:39]} {[%emt 00:04:31]} Kxe8 {[%clk 00:01:41]} {[%emt
00:00:01]} 38. Qd6 {[%clk 00:02:33]} {[%emt 00:01:36]} Ra1 {[%clk 00:01:02]}
{[%emt 00:01:10]} 39. Rxa1 {[%clk 00:02:20]} {[%emt 00:00:43]} Qxa1+ {[%clk
00:01:31]} {[%emt 00:00:01]} 40. Kh2 {[%clk 00:02:49]} Qa4 {[%clk 00:00:46]}
{[%emt 00:01:15]} 41. Qb8+ {[%clk 00:25:55]} {[%emt 00:07:24]} Kd7 {[%clk
00:29:41]} {[%emt 00:01:36]} 42. Qb7+ {[%clk 00:23:41]} {[%emt 00:02:43]} Ke8
{[%clk 00:29:21]} {[%emt 00:00:48]} 43. h4 {[%clk 00:24:02]} {[%emt 00:00:10]}
Qb5 {[%clk 00:27:48]} {[%emt 00:02:03]} 44. Qa8+ {[%clk 00:23:44]} {[%emt
00:00:48]} Kd7 {[%clk 00:26:43]} {[%emt 00:01:34]} 45. Qa7+ {[%clk 00:23:30]}
{[%emt 00:00:45]} Ke8 {[%clk 00:27:00]} {[%emt 00:00:12]} 46. Bd6 {[%clk
00:19:54]} {[%emt 00:04:08]} Qd7 {[%clk 00:27:16]} {[%emt 00:00:13]} 47. Qxa6
{[%clk 00:20:18]} {[%emt 00:00:06]} Bd5 {[%clk 00:24:20]} {[%emt 00:03:26]} 48.
Qe2+ {[%clk 00:18:45]} {[%emt 00:02:04]} Kd8 {[%clk 00:22:16]} {[%emt
00:02:35]} 49. Bf4 {[%clk 00:16:33]} {[%emt 00:02:42]} Qf5 {[%clk 00:21:11]}
{[%emt 00:01:34]} 50. Qe3 {[%clk 00:15:53]} {[%emt 00:01:10]} Qe6 {[%clk
00:05:46]} {[%emt 00:15:55]} 51. Qg3 {[%clk 00:15:11]} {[%emt 00:01:11]} Ke8
{[%clk 00:04:53]} {[%emt 00:01:24]} 52. h5 {[%clk 00:15:33]} {[%emt 00:00:08]}
Qf5 {[%clk 00:04:11]} {[%emt 00:01:13]} 53. h6 {[%clk 00:14:04]} {[%emt
00:01:58]} Kf8 {[%clk 00:04:17]} {[%emt 00:00:24]} 54. Be3 {[%clk 00:10:21]}
{[%emt 00:04:14]} Kg8 {[%clk 00:04:08]} {[%emt 00:00:39]} 55. Bd4 {[%clk
00:07:06]} {[%emt 00:03:44]} Kh7 {[%clk 00:02:09]} {[%emt 00:02:29]} 56. Qb8
{[%clk 00:07:05]} {[%emt 00:00:31]} Kxh6 {[%clk 00:01:13]} {[%emt 00:01:26]} 57.
Qf8+ {[%clk 00:05:16]} {[%emt 00:02:19]} Kg6 {[%clk 00:01:06]} {[%emt
00:00:37]} 58. Qg7+ {[%clk 00:05:31]} {[%emt 00:00:14]} Kh5 {[%clk 00:01:33]}
{[%emt 00:00:04]} 59. Be3 {[%clk 00:05:35]} {[%emt 00:00:26]} g3+ {[%clk
00:00:56]} {[%emt 00:01:07]} 60. fxg3 {[%clk 00:05:05]} {[%emt 00:01:00]} Bxg2
{[%clk 00:01:12]} {[%emt 00:00:14]} 61. g4+ {[%clk 00:05:14]} {[%emt 00:00:20]}
1-0

[Event "Masters Tournament (MTO)"]
[Site "Biel, Switzerland"]
[Date "2026.07.22"]
[Round "9.5"]
[White "Dong, Hongfu"]
[Black "Elmi, Saad Abobaker"]
[Result "1/2-1/2"]
[TimeControl "100+30+30sec/move"]
[WhiteTitle "-"]
[BlackTitle "-"]
[WhiteFideId "8626960"]
[BlackFideId "1553259"]
[WhiteElo "2353"]
[BlackElo "2399"]

1. e4 {[%clk 01:40:53]} {[%emt 00:00:05]} c6 {[%clk 01:37:38]} {[%emt
00:03:23]} 2. d4 {[%clk 01:41:03]} {[%emt 00:00:21]} d5 {[%clk 01:38:01]}
{[%emt 00:00:07]} 3. e5 {[%clk 01:41:26]} {[%emt 00:00:08]} Bf5 {[%clk
01:38:19]} {[%emt 00:00:11]} 4. g4 {[%clk 01:34:31]} {[%emt 00:07:25]} Bd7
{[%clk 01:31:09]} {[%emt 00:07:39]} 5. Nc3 {[%clk 01:34:44]} {[%emt 00:00:18]}
e6 {[%clk 01:28:56]} {[%emt 00:02:43]} 6. Be3 {[%clk 01:33:10]} {[%emt
00:02:04]} h5 {[%clk 01:20:44]} {[%emt 00:08:42]} 7. gxh5 {[%clk 01:30:13]}
{[%emt 00:03:28]} Nh6 {[%clk 01:18:32]} {[%emt 00:02:41]} 8. Bxh6 {[%clk
00:54:33]} {[%emt 00:36:10]} gxh6 {[%clk 01:13:20]} {[%emt 00:05:42]} 9. Qg4
{[%clk 00:51:29]} {[%emt 00:03:35]} Qg5 {[%clk 01:05:36]} {[%emt 00:08:14]} 10.
h3 {[%clk 00:51:08]} {[%emt 00:00:50]} c5 {[%clk 01:01:33]} {[%emt 00:04:33]}
11. Nb5 {[%clk 00:43:30]} {[%emt 00:08:09]} Kd8 {[%clk 00:51:09]} {[%emt
00:10:53]} 12. Nf3 {[%clk 00:40:27]} {[%emt 00:03:33]} Qxg4 {[%clk 00:51:01]}
{[%emt 00:00:37]} 13. hxg4 {[%clk 00:40:53]} {[%emt 00:00:05]} Rg8 {[%clk
00:48:56]} {[%emt 00:02:35]} 14. Rg1 {[%clk 00:35:17]} {[%emt 00:06:06]} Nc6
{[%clk 00:45:08]} {[%emt 00:04:17]} 15. c3 {[%clk 00:34:14]} {[%emt 00:01:34]}
a6 {[%clk 00:38:46]} {[%emt 00:06:52]} 16. Na3 {[%clk 00:33:51]} {[%emt
00:00:54]} cxd4 {[%clk 00:37:55]} {[%emt 00:01:21]} 17. cxd4 {[%clk 00:34:15]}
{[%emt 00:00:06]} Bb4+ {[%clk 00:37:44]} {[%emt 00:00:41]} 18. Kd1 {[%clk
00:34:38]} {[%emt 00:00:07]} Ke7 {[%clk 00:37:40]} {[%emt 00:00:34]} 19. Nc2
{[%clk 00:32:08]} {[%emt 00:03:01]} Ba5 {[%clk 00:37:52]} {[%emt 00:00:17]} 20.
Bd3 {[%emt 00:02:50]} Raf8 {[%clk 00:37:10]} 21. Ke2 {[%clk 00:26:53]} {[%emt
00:04:37]} Bb6 {[%clk 00:34:59]} {[%emt 00:02:40]} 22. g5 {[%clk 00:08:22]}
{[%emt 00:19:02]} hxg5 {[%clk 00:35:19]} {[%emt 00:00:09]} 23. Rxg5 {[%clk
00:08:46]} {[%emt 00:00:06]} Rxg5 {[%clk 00:32:03]} {[%emt 00:03:46]} 24. Nxg5
{[%clk 00:09:13]} {[%emt 00:00:04]} Rh8 {[%clk 00:27:14]} {[%emt 00:05:18]} 25.
Nh7 {[%clk 00:09:09]} {[%emt 00:00:35]} Nxd4+ {[%clk 00:26:29]} {[%emt
00:01:15]} 26. Nxd4 {[%clk 00:09:32]} {[%emt 00:00:07]} Bxd4 {[%clk 00:26:49]}
{[%emt 00:00:09]} 27. f4 {[%clk 00:09:59]} {[%emt 00:00:04]} f5 {[%clk
00:23:00]} {[%emt 00:04:18]} 28. Nf6 {[%clk 00:10:09]} {[%emt 00:00:20]} Bc6
{[%clk 00:21:52]} {[%emt 00:01:37]} 29. Rb1 {[%clk 00:03:14]} {[%emt 00:07:28]}
Kf8 {[%clk 00:17:53]} {[%emt 00:04:27]} 30. b4 {[%clk 00:03:19]} {[%emt
00:00:26]} Be8 {[%clk 00:17:34]} {[%emt 00:00:47]} 31. Kd2 {[%clk 00:02:25]}
{[%emt 00:01:25]} Bb6 {[%clk 00:14:45]} {[%emt 00:03:17]} 32. b5 {[%clk
00:01:36]} {[%emt 00:01:21]} a5 {[%clk 00:12:58]} {[%emt 00:02:17]} 33. Rc1
{[%clk 00:00:36]} {[%emt 00:01:31]} Bd8 {[%clk 00:12:05]} {[%emt 00:01:23]} 34.
Rc8 {[%clk 00:00:32]} {[%emt 00:00:35]} Bxf6 {[%clk 00:12:06]} {[%emt
00:00:28]} 35. exf6 {[%clk 00:01:01]} Kf7 {[%clk 00:10:12]} {[%emt 00:02:24]}
36. Rc7+ {[%clk 00:00:31]} {[%emt 00:01:01]} Kxf6 {[%clk 00:10:35]} {[%emt
00:00:06]} 37. Rxb7 {[%clk 00:00:59]} {[%emt 00:00:02]} Rxh5 {[%clk 00:09:06]}
{[%emt 00:01:59]} 38. Rb8 {[%clk 00:01:08]} {[%emt 00:00:22]} Rh2+ {[%clk
00:09:16]} {[%emt 00:00:19]} 39. Ke3 {[%clk 00:01:17]} {[%emt 00:00:18]} Bxb5
{[%clk 00:09:04]} {[%emt 00:00:45]} 40. Bxb5 {[%clk 00:01:32]} {[%emt
00:00:16]} Rxa2 {[%clk 00:09:05]} {[%emt 00:00:28]} 41. Ra8 {[%clk 00:26:57]}
{[%emt 00:05:06]} Ra3+ {[%clk 00:38:25]} {[%emt 00:01:10]} 42. Bd3 {[%clk
00:27:16]} {[%emt 00:00:11]} Ke7 {[%clk 00:38:00]} {[%emt 00:00:54]} 43. Kd4
{[%clk 00:27:06]} {[%emt 00:00:40]} Ra1 {[%clk 00:37:19]} {[%emt 00:01:11]} 44.
Ra7+ {[%clk 00:27:12]} {[%emt 00:00:26]} Kf6 {[%clk 00:33:36]} {[%emt
00:04:13]} 45. Bb5 {[%clk 00:27:13]} {[%emt 00:00:29]} Re1 {[%clk 00:33:25]}
{[%emt 00:00:41]} 46. Bd3 {[%clk 00:27:36]} {[%emt 00:00:07]} Ra1 {[%clk
00:33:46]} {[%emt 00:00:08]} 47. Be2 {[%clk 00:26:33]} {[%emt 00:01:34]} Ra4+
{[%clk 00:32:39]} {[%emt 00:01:37]} 48. Ke3 {[%clk 00:26:57]} {[%emt 00:00:06]}
Re4+ {[%clk 00:30:26]} {[%emt 00:02:43]} 49. Kf3 {[%clk 00:27:22]} {[%emt
00:00:05]} d4 {[%clk 00:29:47]} {[%emt 00:01:09]} 50. Rxa5 {[%clk 00:27:14]}
{[%emt 00:00:39]} Re3+ {[%clk 00:30:10]} {[%emt 00:00:07]} 51. Kf2 {[%clk
00:27:40]} {[%emt 00:00:04]} Re4 {[%clk 00:30:33]} {[%emt 00:00:06]} 52. Kf3
{[%clk 00:27:22]} {[%emt 00:00:48]} Re3+ {[%clk 00:30:59]} {[%emt 00:00:04]} 53.
Kf2 {[%clk 00:27:47]} {[%emt 00:00:04]} Re4 {[%clk 00:31:24]} {[%emt 00:00:05]}
54. Kf3 {[%clk 00:27:40]} {[%emt 00:00:06]} 1/2-1/2